Cogmind - Beta 14 --- EXPLORER MODE // 2024.09.21 @ 13:29:02 Player: JustYourOrdinaryPerson Result: Self-destructed Performance ------------- Evolutions (2) 1000 Regions Visited (4) 800 Robots Destroyed (19) 95 Value Destroyed (573) 573 Prototype IDs (0) 0 Alien Tech Used (0) 0 Bonus (200) 200 TOTAL SCORE: 2668 Bonus ------- Pacifist 200 Cogmind --------- Core Integrity 540/550 Matter 270/300 Energy 33/100 System Corruption 0% Temperature Cool (0) Movement Core (250) Ox4 Location -8/Materials Parts ------- > --- POWER (2) -------- (None) > --- PROPULSION (3) --- Improved Aluminum Leg > --- UTILITY (4) ------ Improved Terrain Scanner Targeting Computer ECM Suite Reflective Plating > --- WEAPON (3) ------- EM Pulse Gun Shock Rifle Medium Laser > --- INVENTORY (5) ---- Structural Scanner Core Shielding Hardlight Generator Hammer Peak State ------------ > --- POWER ------------ (None) > --- PROPULSION ------- Improved Aluminum Leg > --- UTILITY ---------- Improved Terrain Scanner Targeting Computer ECM Suite Reflective Plating > --- WEAPON ----------- EM Pulse Gun Shock Rifle Medium Laser > --- INVENTORY -------- Structural Scanner Core Shielding Hammer [Rating: 15] Favorites ----------- Power Ion Engine Engine Ion Engine Propulsion Aluminum Leg Leg Aluminum Leg Utility Targeting Computer Device Sensor Array Processor Targeting Computer Protection Reflective Plating Weapon Medium Laser Energy Gun Medium Laser Energy Cannon Beam Cannon Launcher Improved Grenade Launcher Impact Weapon Hammer Build | -11 -10 -9 -9 -8 ------- Run | Yrd Mat Mat Sto Mat Slots Evolved 5 | . 1 2 . 2 Power 1 | . . 1 . . Propulsion 1 | . . . . 1 Utility 2 | . 1 . . 1 Weapon 1 | . . 1 . . Parts Attached 26 | 7 3 5 7 4 Power 3 | 1 . 1 1 . Engine 3 | 1 . 1 1 . Core . | . . . . . Reactor . | . . . . . Propulsion 5 | 2 . 1 2 . Treads . | . . . . . Leg 5 | 2 . 1 2 . Wheel . | . . . . . Hover . | . . . . . Flight . | . . . . . Utility 9 | 2 2 . 2 3 Device 6 | . 2 . 1 3 Storage . | . . . . . Processor 1 | 1 . . . . Hackware . | . . . . . Protection 2 | 1 . . 1 . Artifact . | . . . . . Weapon 9 | 2 1 3 2 1 Energy Gun 4 | 2 . . 1 1 Energy Cannon 1 | . 1 . . . Ballistic Gun . | . . . . . Ballistic Cannon . | . . . . . Launcher 2 | . . 2 . . Special Weapon . | . . . . . Impact Weapon 2 | . . 1 1 . Slashing Weapon . | . . . . . Piercing Weapon . | . . . . . Special Melee Weapon . | . . . . . Unidentified Prototypes . | . . . . . Parts Lost 4 | . . . 2 2 Power 2 | . . . 1 1 Propulsion . | . . . . . Utility 1 | . . . . 1 Weapon 1 | . . . 1 . Highest Loss Streak 2 | . . . 1 2 To Critical Strikes . | . . . . . Average Slot Usage (%) 86 | . 100 98 75 68 Engine 12 | . 12 19 9 4 Leg 17 | . 25 20 16 8 Device 17 | . 18 20 16 13 Processor 10 | . 12 10 10 8 Protection 2 | . 6 . 1 8 Energy Gun 13 | . 22 10 11 16 Energy Cannon 6 | . 2 10 6 . Launcher 3 | . . 6 3 . Impact Weapon 2 | . . 3 1 7 Peak Build Rating 15 | 7 8 13 13 15 Average Rating 10 | 5 8 11 9 11 On Entrance 7 | . 7 8 13 11 Naked Turns . | . . . . . Heaviest Build 23 | 10 12 23 23 17 Greatest Support 26 | 20 20 23 26 13 Greatest Overweight (x) 4 | 3 . 1 1 4 Average Overweight (x) . | . . . . . Largest Inventory Capacity 5 | 5 5 5 5 5 Average Capacity 5 | 5 5 5 5 5 Most Carried 5 | 2 5 5 5 4 Average Carried 3 | . 3 4 4 1 Final Capacity 5 | 5 5 5 5 5 Final Carried 5 | 2 5 5 2 4 Class Distribution -------------------- 67% | Hacker-Mutant 32% | Hacker-Gunner Dominant Class ---------------- Hacker-Mutant | -10/Materials Hacker-Gunner | -9/Materials Hacker-Mutant | -9/Storage Hacker-Mutant | -8/Materials Resources | -11 -10 -9 -9 -8 ----------- Run | Yrd Mat Mat Sto Mat Matter Collected 524 | 248 . 122 104 50 Remotely 206 | . . 122 84 . Salvage Created 655 | . . 118 485 52 Parts 33 | . . 9 23 1 Haulers Intercepted . | . . . . . Recyclers Shooed 1 | . . . 1 . Parts Field Recycled . | . . . . . Retrieved Matter . | . . . . . Parts Self-Destructed . | . . . . . Prevented . | . . . . . Kills | -11 -10 -9 -9 -8 ------- Run | Yrd Mat Mat Sto Mat Combat Hostiles Destroyed 14 | . . 2 11 1 Guns 8 | . . . 8 . Cannons 2 | . . 1 1 . AOE 3 | . . 1 2 . Classes Destroyed 7 | . . 2 4 1 Worker 3 | . . 1 2 . Builder 1 | . . . 1 . Watcher 1 | . . . 1 . Swarmer 2 | . . . 2 . Grunt 4 | . . . 4 . Sentry 7 | . . 2 5 . Hunter 1 | . . . . 1 Best Kill Streak 4 | . . 2 4 1 Combat Bots Only 3 | . . 1 3 1 Max Kills in Single Turn 2 | . . 2 2 1 Gunslinging . | . . . . . Exploded 1 | . . 1 1 . Melee . | . . . . . Uniques/NPCs Destroyed . | . . . . . Combat | -11 -10 -9 -9 -8 -------- Run | Yrd Mat Mat Sto Mat Hostile Shots Fired 86 | . . 4 68 14 Missed 33 | . . 1 30 2 Damage Taken 526 | . . 27 375 124 Core 78 | . . 9 59 10 Absorbed by Shields . | . . . . . Ignored by Resistances 323 | . . 16 232 75 Core Remaining (%) 94 | 100 100 . 83 . Volleys Fired 50 | . . 2 46 2 Largest 3 | . . 3 3 2 Hottest 146 | . . 146 146 90 Shots Fired 76 | . . 6 66 4 Gun 52 | . . 2 46 4 Cannon 16 | . . 2 14 . Launcher 8 | . . 2 6 . Special . | . . . . . Kinetic . | . . . . . Thermal 66 | . . 4 60 2 Explosive 8 | . . 2 6 . Electromagnetic 2 | . . . . 2 Robot Hit Streak 31 | . . 5 31 3 Robot Miss Streak 2 | . . . 1 2 Penetration Max . | . . . . . Secondary Targets . | . . . . . Shots Hit Robots 72 | . . 5 60 7 Core Hits 31 | . . 5 25 1 Critical Kills . | . . . . . Critical Parts Destroyed 1 | . . . . 1 Critical Strikes 5 | . . . 3 2 Burn 4 | . . . 3 1 Smash 1 | . . . . 1 Melee Attacks 4 | . . . . 4 Impact 4 | . . . . 4 Slashing . | . . . . . Piercing . | . . . . . Sneak Attacks . | . . . . . Combat Hostiles . | . . . . . Follow-up Attacks . | . . . . . Damage Inflicted 1176 | . . 110 945 121 Guns 614 | . . 26 548 40 Cannons 209 | . . 36 173 . Explosions 272 | . . 48 224 . Melee 81 | . . . . 81 Ramming . | . . . . . Kinetic . | . . . . . Thermal 808 | . . 62 721 25 Explosive 272 | . . 48 224 . Electromagnetic 15 | . . . . 15 Impact 81 | . . . . 81 Slashing . | . . . . . Piercing . | . . . . . Highest Corruption . | . . . . . Average Corruption . | . . . . . Corruption Purged . | . . . . . Corruption Blocked . | . . . . . Overload Shots . | . . . . . Overflow Damage 20 | . . . . 20 Projectiles . | . . . . . Explosions . | . . . . . Melee 20 | . . . . 20 Knockbacks . | . . . . . Impact . | . . . . . Kinetic . | . . . . . Secondary . | . . . . . Self-Inflicted Damage 16 | . . . 16 . Shots 1 | . . . 1 . Rammed . | . . . . . Targets Rammed . | . . . . . Kicked . | . . . . . Crushed . | . . . . . Highest Temperature 382 | . . 99 382 42 Average Temperature 93 | . . 52 101 23 Received Heat Transfer 189 | . . 9 180 . Effects 1 | . . . 1 . Interference 1 | . . . 1 . Siege Activations . | . . . . . Robots Corrupted 1 | . . . . 1 Combat Hostiles 1 | . . . . 1 Parts Fried . | . . . . . Impact Corruptions 3 | . . . . 3 Robots Melted . | . . . . . Combat Hostiles . | . . . . . Parts Melted 7 | . . . 7 . Heat Transferred 2516 | . . 148 2220 148 Parts Sabotaged . | . . . . . Parts Stolen . | . . . . . Parts Stripped . | . . . . . Power Chain Reactions . | . . . . . Alert | -11 -10 -9 -9 -8 ------- Run | Yrd Mat Mat Sto Mat Peak Influence 379 | . . 116 379 62 Initial 52 | . . . 34 52 Average 86 | . . 14 234 54 Maximum Alert Level 1 | . . . 1 . Low Security (%) 83 | 100 100 100 47 100 Level 1 16 | . . . 52 . Level 2 . | . . . . . Level 3 . | . . . . . Level 4 . | . . . . . Level 5 . | . . . . . High Security . | . . . . . Max Security . | . . . . . Squads Dispatched 3 | . . 1 . 2 Investigation . | . . . . . Extermination . | . . . . . Reinforcement 3 | . . 1 . 2 Assault . | . . . . . Garrison . | . . . . . Intercept . | . . . . . Searches Triggered . | . . . . . Construction Impeded . | . . . . . Haulers Reinforced . | . . . . . Active Scanning Responses . | . . . . . Cargo Convoy Interrupts . | . . . . . Stealth | -11 -10 -9 -9 -8 --------- Run | Yrd Mat Mat Sto Mat Distress Signals 1 | . . . . 1 Communications Jammed . | . . . . . Distress Signals . | . . . . . Times Spotted 21 | . . 3 15 3 Peak Tracking Total 3 | . . 1 3 3 Tactical Retreats 2 | . . . 1 1 Traps | -11 -10 -9 -9 -8 ------- Run | Yrd Mat Mat Sto Mat Traps Triggered 3 | . . . 3 . Indirectly . | . . . . . Trap Hack Attempts . | . . . . . Triggered . | . . . . . Disarmed . | . . . . . Reprogrammed 1 | . . . 1 . Reused . | . . . . . Traps Extracted . | . . . . . Installed . | . . . . . Triggered . | . . . . . Machines | -11 -10 -9 -9 -8 ---------- Run | Yrd Mat Mat Sto Mat Machines Disabled 1 | . . . 1 . Max in Single Turn 1 | . . . 1 . Machines Repaired . | . . . . . Machines Dismantled . | . . . . . Machines Sabotaged . | . . . . . Overloaded Fab Kills . | . . . . . Hacking | -11 -10 -9 -9 -8 --------- Run | Yrd Mat Mat Sto Mat Machines Accessed 4 | . 2 1 1 . Terminals 3 | . 1 1 1 . Fabricators . | . . . . . Repair Stations . | . . . . . Recycling Units 1 | . 1 . . . Scanalyzers . | . . . . . Garrison Access . | . . . . . Total Hacks 10 | . 3 2 5 . Successful 5 | . 1 2 2 . Failed 5 | . 2 . 3 . Catastrophic 1 | . 1 . . . Database Lockouts . | . . . . . Manual 9 | . 2 2 5 . Terminals 9 | . 2 2 5 . Fabricators . | . . . . . Repair Stations . | . . . . . Recycling Units 1 | . 1 . . . Scanalyzers . | . . . . . Garrison Access . | . . . . . Terminal Hacks 4 | . . 2 2 . Reprogram Traps 2 | . . 1 1 . Zone Layout 2 | . . 1 1 . Fabricator Hacks . | . . . . . Repair Station Hacks . | . . . . . Recycling Unit Hacks 1 | . 1 . . . Retrieve Components 1 | . 1 . . . Scanalyzer . | . . . . . Garrison Access Hacks . | . . . . . Unauthorized Hacks . | . . . . . Terminals . | . . . . . Fabricators . | . . . . . Repair Stations . | . . . . . Recycling Units . | . . . . . Scanalyzers . | . . . . . Garrison Access . | . . . . . Data Cores Recovered . | . . . . . Used . | . . . . . Hacking Detections 3 | . 2 . 1 . Full Trace Events . | . . . . . Feedback Events . | . . . . . Feedback Blocked . | . . . . . Robot Schematics Acquired . | . . . . . Robots Built . | . . . . . Authchips . | . . . . . Time . | . . . . . Total Robot Build Rating . | . . . . . Part Schematics Acquired . | . . . . . Parts Built . | . . . . . Authchips . | . . . . . Time . | . . . . . Total Part Build Rating . | . . . . . Parts Repaired . | . . . . . Time . | . . . . . Parts Recycled . | . . . . . Recycled Matter . | . . . . . Retrieved Matter . | . . . . . Retrieved Components 3 | . 3 . . . Parts Scanalyzed . | . . . . . Part Schematics Acquired . | . . . . . Parts Damaged . | . . . . . Bothacking | -11 -10 -9 -9 -8 ------------ Run | Yrd Mat Mat Sto Mat Used RIF Installer . | . . . . . Robots Hacked . | . . . . . Non-combat . | . . . . . Combat . | . . . . . Robot Hacks Applied . | . . . . . Relay Couplers Released . | . . . . . Fabnet Peak Effective % . | . . . . . Robots Rewired . | . . . . . Allies Hacked . | . . . . . Hacks Repelled . | . . . . . Allies | -11 -10 -9 -9 -8 -------- Run | Yrd Mat Mat Sto Mat Total Allies . | . . . . . Largest Group . | . . . . . Highest-Rated Group . | . . . . . Highest-Rated Ally . | . . . . . Total Orders . | . . . . . Ally Attacks . | . . . . . Total Damage . | . . . . . Kills . | . . . . . Allies Corrupted . | . . . . . Allies Melted . | . . . . . Intel | -11 -10 -9 -9 -8 ------- Run | Yrd Mat Mat Sto Mat Robot Analysis Total . | . . . . . Derelict Logs Recovered . | . . . . . Drone Launches . | . . . . . Drone Recoveries . | . . . . . Exploration | -11 -10 -9 -9 -8 ------------- Run | Yrd Mat Mat Sto Mat Turns Passed 1902 | 61 281 684 595 281 Spaces Moved 1040 | 44 222 346 276 152 Core 16 | 14 . . . 2 Treads . | . . . . . Legs 1024 | 30 222 346 276 150 Wheels . | . . . . . Hover . | . . . . . Flight . | . . . . . Fastest Speed 50 | 50 120 120 120 120 Average Speed 134 | 111 120 140 129 159 Slowest Speed 250 | 200 120 190 190 250 Overloaded Moves . | . . . . . Propulsion Burnouts . | . . . . . Robots Hopped . | . . . . . Cave-ins Triggered . | . . . . . Exploration Rate (%) 25 | 4 28 26 53 14 Regions Visited 4 Branch Regions 1 Pre-discovered Areas . | . . . . . Known Exits Taken 4 | 1 1 1 1 . Unknown Exits Taken . | . . . . . Scrap Searched . | . . . . . Spaces Dug . | . . . . . Terrain Destroyed 64 | . . 20 44 . Melee . | . . . . . Projectile . | . . . . . AOE 64 | . . 20 44 . Terrain Rammed . | . . . . . Walls Destroyed . | . . . . . Machines Disabled . | . . . . . Actions | -11 -10 -9 -9 -8 --------- Run | Yrd Mat Mat Sto Mat Total 1460 | 52 236 541 454 177 Wait 327 | . 8 185 124 10 Move 1036 | 43 221 345 275 152 Hop . | . . . . . Pick Up 11 | 2 3 2 . 4 Fast Attach 11 | 7 1 . 2 1 Attach 7 | . 1 2 3 1 Detach 1 | . 1 . . . Swap 8 | . 1 3 2 2 Drop 5 | . . 2 2 1 Fire 50 | . . 2 46 2 Melee 4 | . . . . 4 Ram . | . . . . . Kick . | . . . . . Crush . | . . . . . Escape Stasis . | . . . . . Rewire . | . . . . . Trap . | . . . . . Miscellaneous . | . . . . . Route ------- -11/Scrapyard -10/Materials -9/Materials -9/Storage -8/Materials History --------- Turn | Location | Event 27 | -11/Scrapyard | Identified exit to Materials 27 | -11/Scrapyard | Discovered exit to Materials (range 15) 62 | -11/Scrapyard | Entered Materials 62 | -10/Materials | Evolved 1 slot: Utility x1 276 | -10/Materials | Identified exit to Materials 276 | -10/Materials | Discovered exit to Materials (range 15) 315 | -10/Materials | Build established: Hacker-Mutant 343 | -10/Materials | Entered another Materials area 343 | -9/Materials | Evolved 2 slots: Power x1, Weapon x1 903 | -9/Materials | Build established: Hacker-Gunner 1018 | -9/Materials | Identified exit to Storage 1018 | -9/Materials | Discovered exit to Storage (range 6) 1027 | -9/Materials | Entered Storage 1532 | -9/Storage | Build established: Hacker-Mutant 1607 | -9/Storage | Identified exit to Materials 1607 | -9/Storage | Discovered exit to Materials (range 7) 1622 | -9/Storage | Entered Materials 1622 | -8/Materials | Evolved 2 slots: Propulsion x1, Utility x1 1903 | -8/Materials | Self-destructed Last Messages --------------- 01798_ H-55 Commando system corrupted by crushing effect. 01799_ H-55 Commando system terminally corrupted. 01805_ K-01 Serf collects debris. 01805_ O-24 Administrator: "IFF HANDSHAKE FAILED. SECURING TERMINAL." 01805_ Acquired Corrupted Gauss Rifle. 01809_ K-01 Serf collects debris. 01811_ ALERT: Hostiles spotted, dispatching reinforcements to Terminal M010. 01812_ O-16 Technician: "IFF HANDSHAKE FAILED. SECURING TERMINAL." 01822_ Acquired ECM Suite. 01827_ ALERT: Hostiles spotted, dispatching reinforcements to Terminal M003. 01868_ Acquired Imp. Terrain Scanner. 01880_ Dropped Corrupted Gauss Rifle. 01880_ Acquired Shock Rifle. 01902_ Acquired Hardlight Generator. Map ----- +----------------------------------------------------+ | ?????????????????????????????????????????????????? | | ?????????????????????????????????????????????????? | | ?????????????????????????????????????????????????? | | ?????????????????????????????????????????????????? | | ?????????????????????????????????????????????????? | | ?????????????????????????????????????????????????? | | ?????????????????????????????????????????????????? | | ?????????????????????????????????????????????????? | | ?????????????????????????????????????????????????? | | ?????????????????????????????????????????????????? | | ?????????????????????????????????????????????????? | | ??????????????????##########?????????????????????? | | ????????????? ????##########?????????????????????? | | ??????????????????## ##?????????????????????? | | ??????????????????## ##?????????????????????? | | ??????????????????## """ [##?????????????????????? | | ??????????????????## """ ##?????????????????????? | | ??????????????????## """ ##?????????????????????? | | ???????? #### ################### | | ????????###############+########################## | | ???????? | | ???????? | | ???????? | | ????????#+#### ###+####################+##### | | ???????? # # ############ # | | ???????????? #**[[! # r[k@ ##??????????????]]! # | | ???????????? #**[[? # [ =! ##??????????????]]! # | | ???????????? #####?## [!! ##??????????????][ # | | ???????????? #####?## ##????????????? # | | ???????????????????## [ ##????????????? # | | ???????????????????##########?????????????""T"" ## | | ???????????????????##########??????????? """"" ## | | ????????????????????????????????????????########## | | ????????????????????????????????????????########## | | ?????????????????????????????????????????????????? | | ??????????????????????????#??????????????????????? | | ?????????????????????????????????????????????????? | | ?????????????????????????????????????????????????? | | ?????????????????????????????????????????????????? | | ?????????????????????????????????????????????????? | | | | | | | | | | | | | | | | | | | | | +----------------------------------------------------+ Best States ------------- Heat Dissipation 31 Energy Generation 15 Energy Capacity 400 Matter Stores 300 Matter Capacity 300 Sight Range 16 Robot Scan Range 14 Terrain Scan Range 16 Terrain Scan Density 10 ECM Strength 1 Armor Coverage 150 Resistance: KI 35 Resistance: TH 45 Resistance: EX 35 Resistance: EM 35 Resistance: I 35 Resistance: S 35 Resistance: P 35 Core Shielding 20 Evasion (%) 55 Targeting Accuracy 5 Offensive Hacking 20 Item Schematics ----------------- None Robot Schematics ------------------ None Fabricated ------------ Nothing Alien Tech Used ----------------- None Achievements -------------- Use The Force Challenges ------------ None Game ------ Seed BeamScrapoidBrace Manual? 0 Play Time 00:20:13 Cumulative 10.8 hours Start 2024.09.21 @ 13:11:40 End 2024.09.21 @ 13:29:02 Sessions 1 Manual Loads 0 Difficulty Explorer Special Mode None Game No. 23 Rogue 2 Adventurer 0 Explorer 21 Win Type - Total 0 Types 0/0/0/0/0/0/0/0/0 Lore% 10 Gallery% 16 Achievement% 19 Wizard Run 0 Options --------- Layout 2 ASCII 0 Keyboard 1 Movement Numpad Keybinds 1 Fullscreen 2 Font 24/Proggy Map View 50x44 Zoom Use 0% Tactical HUD 1 Map Filters NONE Filters NONE Steam 0 RUN: abd52e87-d804-4fe9-86ce-c2817448def3